bitfinex-derivatives/quotes_BTCF0:USTF0_20250806
["timestamp","ask_amount","ask_price","bid_price","bid_amount"]
[1754499681654,1.21681417,115260.0,115250.0,0.07000427]
[1754499681858,0.2414257,115250.0,115240.0,0.3360805]
[1754499682166,0.62113927,115250.0,115240.0,0.3360805]
[1754499682368,0.62113927,115250.0,115240.0,0.2926989]
[1754499682660,0.8372257,115250.0,115240.0,0.1735308]
[1754499682859,1.21693927,115250.0,115240.0,0.1735308]
[1754499685267,1.21693927,115250.0,115240.0,0.24203487]
[1754499685468,1.21693927,115250.0,115240.0,0.26488487]
[1754499686466,1.21693927,115250.0,115240.0,0.32180487]
[1754499686668,1.21693927,115250.0,115240.0,0.35913487]
[1754499689471,0.8135557,115250.0,115240.0,0.35913487]
[1754499689675,1.21693927,115250.0,115240.0,0.35913487]
[1754499690572,1.04342357,115250.0,115240.0,0.35913487]
[1754499690773,0.64004,115250.0,115240.0,0.35913487]
[1754499695379,0.8135556,115250.0,115240.0,0.35913487]
[1754499695873,0.8372256,115250.0,115240.0,0.35913487]
[1754499696965,0.66371,115250.0,115240.0,0.35913487]
[1754499697975,0.8372256,115250.0,115240.0,0.35913487]
[1754499698383,0.66371,115250.0,115240.0,0.35913487]
[1754499700267,0.66471,115250.0,115240.0,0.35913487]
[1754499700775,0.8382256,115250.0,115240.0,0.35913487]
[1754499701083,0.66471,115250.0,115240.0,0.35913487]
[1754499701378,0.8382256,115250.0,115240.0,0.35913487]
[1754499701680,1.21793917,115250.0,115240.0,0.35913487]
[1754499701978,1.21793917,115250.0,115240.0,0.2906308]
[1754499703678,1.21793917,115250.0,115240.0,0.1735308]
[1754499704278,1.21793917,115250.0,115240.0,0.1961608]
[1754499705581,1.21793917,115250.0,115240.0,0.1735308]
[1754499708684,0.8382256,115250.0,115240.0,0.1735308]
[1754499708886,1.21793917,115250.0,115240.0,0.1735308]
[1754499709883,1.21793917,115250.0,115240.0,0.24283312]
[1754499711087,1.21793917,115250.0,115240.0,0.26546312]
[1754499711590,1.21686917,115250.0,115240.0,0.35874312]
[1754499713390,0.8371556,115250.0,115240.0,0.35874312]
[1754499713690,1.21686917,115250.0,115240.0,0.35874312]
[1754499715492,0.8371556,115250.0,115240.0,0.35874312]
[1754499715894,1.21686917,115250.0,115240.0,0.35874312]
[1754499721900,0.62106917,115250.0,115240.0,0.35874312]
[1754499722100,1.21682917,115250.0,115240.0,0.24283312]
[1754499722299,1.21682917,115250.0,115240.0,0.06930232]
[1754499722509,0.1735279,115240.0,115230.0,0.3036885]
[1754499722698,1.09529824,115240.0,115230.0,0.3036885]
[1754499723002,0.66792807,115240.0,115230.0,0.3263185]
[1754499723503,0.66792807,115240.0,115230.0,0.3493585]
[1754499723805,0.66792807,115240.0,115230.0,0.4195985]
[1754499724192,0.66792807,115240.0,115230.0,0.3354585]
[1754499724398,0.66792807,115240.0,115230.0,0.3036885]
[1754499724701,0.62041366,115240.0,115230.0,0.3263185]
[1754499725305,0.62041366,115240.0,115230.0,0.2829326]
[1754499725805,0.62041366,115240.0,115230.0,0.02263]
[1754499726003,0.2295982,115220.0,115210.0,0.3762548]
[1754499726200,1.20521396,115220.0,115210.0,0.1827018]
[1754499726400,1.20521396,115220.0,115210.0,0.2053318]
[1754499726599,1.21620396,115220.0,115210.0,0.2053318]
[1754499726798,0.2406037,115210.0,115200.0,0.39597543]
[1754499727006,0.2406037,115210.0,115200.0,0.1735785]
[1754499727007,0.62045946,115210.0,115200.0,0.1735785]
[1754499727205,0.2406181,115200.0,115190.0,0.3763011]
[1754499727400,0.1736031,115190.0,115180.0,0.3834703]
[1754499727601,0.62048886,115190.0,115180.0,0.3763257]
[1754499727907,0.62048886,115190.0,115180.0,0.2555365]
[1754499728205,0.62048886,115190.0,115180.0,0.2053882]
[1754499728504,0.2406483,115180.0,115170.0,0.2396623]
[1754499728709,1.22783127,115180.0,115170.0,0.2396623]
[1754499728911,1.22783127,115180.0,115170.0,0.3081455]
[1754499729113,1.05421297,115180.0,115170.0,0.4014255]
[1754499730310,1.05421297,115180.0,115170.0,0.4024255]
[1754499731901,0.60764721,115180.0,115170.0,0.78228126]
[1754499733315,0.60764721,115180.0,115170.0,0.4024255]
[1754499734010,0.59608,115180.0,115170.0,0.78228126]
[1754499734213,0.41491576,115210.0,115190.0,0.06883]
[1754499734416,0.63273704,115210.0,115200.0,0.2894675]
[1754499734716,1.05560424,115210.0,115200.0,0.2894675]
[1754499735016,1.22917664,115210.0,115200.0,0.2894675]
[1754499735212,1.05560424,115210.0,115200.0,0.2894675]
[1754499735915,1.05560424,115210.0,115200.0,0.2435975]
[1754499736112,0.05623848,115210.0,115200.0,0.2894675]
[1754499736417,0.65271848,115210.0,115200.0,0.2894675]
[1754499737218,0.67678848,115210.0,115200.0,0.2894675]
[1754499738217,0.67578848,115210.0,115200.0,0.2894675]
[1754499739909,1.05564424,115210.0,115200.0,0.2894675]
[1754499741613,1.04416576,115210.0,115200.0,0.2894675]
[1754499742517,0.66431,115210.0,115200.0,0.2894675]
[1754499743319,0.62258,115210.0,115200.0,0.66932326]
[1754499743917,0.63418358,115210.0,115200.0,0.66932326]
[1754499744218,0.62319358,115210.0,115200.0,0.66932326]
[1754499744912,0.63418358,115210.0,115200.0,0.2894675]
[1754499745115,0.65176358,115210.0,115200.0,0.2894675]
[1754499747418,0.60800358,115210.0,115200.0,0.66932326]
[1754499748314,0.61899358,115210.0,115200.0,0.66932326]
[1754499748522,0.63418358,115210.0,115200.0,0.66932326]
[1754499749423,0.63418358,115210.0,115200.0,0.2894675]
[1754499749623,0.63418358,115210.0,115200.0,0.66932326]
[1754499750424,0.63418358,115210.0,115200.0,0.67232326]
[1754499750627,0.65176358,115210.0,115200.0,0.67232326]
[1754499751127,0.65176358,115210.0,115200.0,0.2924675]
[1754499752724,0.65176358,115210.0,115200.0,0.67232326]
[1754499753517,0.64016,115210.0,115200.0,0.67232326]
[1754499754023,0.5964,115210.0,115200.0,0.69163287]
[1754499756121,0.6404,115220.0,115210.0,0.2894542]
[1754499757324,0.61183,115220.0,115210.0,0.66930996]
[1754499757632,0.62282,115220.0,115210.0,0.66930996]
[1754499758128,0.62282,115220.0,115210.0,0.67030996]
[1754499758627,0.61183,115220.0,115210.0,0.67030996]
[1754499758822,0.62282,115220.0,115210.0,0.67030996]
[1754499759025,0.59664,115220.0,115210.0,0.67030996]
[1754499759223,0.59664,115220.0,115210.0,0.67330996]
[1754499760135,0.60763,115220.0,115210.0,0.67330996]
[1754499761128,0.60763,115220.0,115210.0,0.67430996]
[1754499761425,0.62387,115220.0,115210.0,0.67430996]
[1754499762027,0.62387,115220.0,115210.0,0.67530996]
[1754499762830,0.62387,115220.0,115210.0,0.67430996]
[1754499763037,0.62387,115220.0,115210.0,0.67630996]
[1754499763236,0.66537,115220.0,115210.0,0.2964542]
[1754499763738,0.63537,115220.0,115210.0,0.2964542]
[1754499764639,0.63537,115220.0,115210.0,0.2914542]
[1754499764836,0.63537,115220.0,115210.0,0.2944542]
[1754499766240,0.63537,115220.0,115210.0,0.67430996]
[1754499770652,0.63537,115220.0,115210.0,0.2944542]
[1754499772953,0.63537,115220.0,115210.0,0.2485842]
[1754499773553,0.63537,115220.0,115210.0,0.2955042]
[1754499774742,0.63537,115220.0,115210.0,0.2111042]
[1754499775249,0.63537,115220.0,115210.0,0.2213942]
[1754499775451,0.63537,115220.0,115210.0,0.2963342]
[1754499776154,0.63537,115220.0,115210.0,0.2953342]
[1754499780649,0.61145,115220.0,115210.0,0.67518996]
[1754499780956,0.61212,115220.0,115210.0,0.67518996]
[1754499781157,0.62311,115220.0,115210.0,0.67518996]
[1754499781457,0.66461,115220.0,115210.0,0.67518996]
[1754499781647,0.66461,115220.0,115210.0,0.2953342]
[1754499784060,0.06873,115220.0,115210.0,0.2953342]
[1754499784253,0.66461,115220.0,115210.0,0.2953342]
[1754499784859,1.04446576,115220.0,115210.0,0.2484142]
[1754499785459,0.66461,115220.0,115210.0,0.2484142]
[1754499786047,0.66461,115220.0,115210.0,0.2953342]
[1754499792156,0.66461,115220.0,115210.0,0.67518996]
[1754499795463,0.66461,115220.0,115210.0,0.2953342]
[1754499795858,0.06873,115220.0,115210.0,0.2953342]
[1754499796058,0.0867322,115290.0,115270.0,0.1734763]
[1754499796258,0.1734729,115280.0,115270.0,0.173488]
[1754499796467,0.66724792,115280.0,115260.0,0.2602415]
[1754499796663,0.24402116,115280.0,115270.0,0.173488]
[1754499796967,0.24402116,115280.0,115260.0,0.153582]
[1754499796968,1.20484917,115280.0,115260.0,0.3270725]
[1754499797166,0.97705576,115270.0,115260.0,0.2836977]
[1754499797565,1.27705576,115270.0,115260.0,0.216863]
[1754499798064,1.27705576,115270.0,115260.0,0.241323]
[1754499798969,1.27713576,115270.0,115260.0,0.241323]
[1754499799867,1.27713576,115270.0,115260.0,0.240323]
[1754499800172,0.97713576,115270.0,115260.0,0.240323]
[1754499800363,0.97713576,115270.0,115260.0,0.216863]
[1754499800668,1.45062486,115270.0,115260.0,0.1735041]
[1754499800866,1.27713576,115270.0,115260.0,0.1735041]
[1754499801061,0.97713576,115270.0,115260.0,0.1735041]
[1754499801462,1.15062496,115270.0,115260.0,0.1969641]
[1754499802067,0.97713576,115270.0,115260.0,0.1969641]
[1754499802770,0.59728,115270.0,115260.0,0.1969641]
[1754499802972,0.37985576,115270.0,115260.0,0.1969641]
[1754499803269,0.97701576,115270.0,115260.0,0.1969641]
[1754499804174,0.97697576,115270.0,115260.0,0.1969641]
[1754499805672,1.15046526,115270.0,115260.0,0.1969641]
[1754499807175,0.97697576,115270.0,115260.0,0.1969641]
[1754499807374,1.15046516,115270.0,115260.0,0.1969641]
[1754499807576,1.71073776,115270.0,115250.0,0.1535973]
[1754499807776,0.37985576,115260.0,115250.0,0.2837284]
[1754499808872,0.37985576,115260.0,115250.0,0.3666784]
[1754499809078,0.37985576,115260.0,115250.0,0.3801884]
[1754499809278,0.37985576,115260.0,115250.0,0.3811884]
[1754499812484,0.97697576,115270.0,115260.0,0.2934254]
[1754499812881,0.59712,115270.0,115260.0,0.2934254]
[1754499813580,0.97697576,115270.0,115260.0,0.2934254]
[1754499815491,1.15046606,115270.0,115260.0,0.2934254]
[1754499815785,0.97697576,115270.0,115260.0,0.2934254]
[1754499815990,1.15046696,115270.0,115260.0,0.2223554]
[1754499816284,1.15046696,115270.0,115260.0,0.1969654]
[1754499816482,0.97697576,115270.0,115260.0,0.1969654]
[1754499817188,0.97697576,115270.0,115260.0,0.2707354]
[1754499817688,1.15046706,115270.0,115260.0,0.2707354]
[1754499817988,1.15046706,115270.0,115260.0,0.2572254]
[1754499818188,1.15046706,115270.0,115260.0,0.2223554]
[1754499818788,0.97697576,115270.0,115260.0,0.2223554]
[1754499819189,0.59712,115270.0,115260.0,0.2223554]
[1754499819487,0.97697576,115270.0,115260.0,0.2572254]
[1754499819687,1.15046696,115270.0,115260.0,0.2572254]
[1754499820590,1.15046696,115270.0,115260.0,0.1969654]
[1754499820884,0.1735073,115260.0,115250.0,0.1980206]
[1754499821091,0.55336306,115260.0,115250.0,0.1980206]
[1754499822186,0.55336306,115260.0,115250.0,0.1990206]
[1754499824092,0.55336306,115260.0,115250.0,0.1980206]
[1754499825194,0.55336306,115260.0,115250.0,0.2933506]
[1754499825492,0.37985576,115260.0,115250.0,0.2933506]
[1754499825895,0.8573791,115270.0,115260.0,0.1735094]
[1754499826190,1.23723486,115270.0,115260.0,0.1980194]
[1754499827188,1.23723486,115270.0,115260.0,0.02451]
[1754499827385,1.23723486,115270.0,115220.0,0.37985576]
[1754499827386,0.0652851,115240.0,115220.0,0.1358342]
[1754499827687,0.01348,115220.0,115210.0,0.4075237]
[1754499827890,0.39333576,115220.0,115210.0,0.4424937]
[1754499828386,0.01348,115220.0,115210.0,0.4424937]
[1754499828595,0.39333576,115220.0,115210.0,0.4424937]
[1754499829395,0.39333576,115220.0,115210.0,0.4670037]
[1754499830395,0.40365121,115220.0,115210.0,0.4670037]
[1754499832198,0.41207121,115220.0,115210.0,0.4670037]
[1754499833999,0.40365121,115220.0,115210.0,0.4670037]
[1754499837905,0.40365121,115220.0,115210.0,0.4236078]
[1754499838402,0.41207121,115220.0,115210.0,0.4236078]
[1754499839114,0.40365121,115220.0,115210.0,0.4236078]
[1754499840218,0.02379545,115220.0,115210.0,0.4236078]
[1754499840512,0.40365121,115220.0,115210.0,0.4236078]
[1754499842423,0.02379545,115220.0,115210.0,0.4236078]
[1754499842716,0.01031545,115220.0,115210.0,0.4236078]
[1754499842917,0.59896,115230.0,115220.0,0.2934112]
[1754499843319,0.60920647,115230.0,115220.0,0.2934112]
[1754499844719,0.62268647,115230.0,115220.0,0.2934112]
[1754499845418,1.00254223,115230.0,115220.0,0.2934112]
[1754499851425,0.01024647,115230.0,115220.0,0.2934112]
[1754499851626,0.99129576,115230.0,115220.0,0.2929912]
[1754499851928,0.99971576,115230.0,115220.0,0.2929912]
[1754499853431,1.01001997,115230.0,115220.0,0.2929912]
[1754499854224,0.63016421,115230.0,115220.0,0.2929912]
[1754499854527,1.01001997,115230.0,115220.0,0.2929912]
[1754499855236,1.00159997,115230.0,115220.0,0.2929912]
[1754499855433,0.62174421,115230.0,115220.0,0.2929912]
[1754499855838,0.60826421,115230.0,115220.0,0.67284696]
[1754499856136,0.60826421,115230.0,115220.0,0.2929912]
[1754499857320,0.60826421,115230.0,115220.0,0.2939912]
[1754499860531,0.60826421,115230.0,115220.0,0.67384696]
[1754499861032,0.60826421,115230.0,115220.0,0.2939912]
[1754499861233,0.59796,115230.0,115220.0,0.2939912]
[1754499861428,1.20016,115240.0,115230.0,0.2943364]
[1754499861733,1.79772,115240.0,115230.0,0.2943364]
[1754499863033,2.18599576,115240.0,115230.0,0.2943364]
[1754499863223,2.18599576,115240.0,115230.0,0.1978964]
[1754499863629,2.18599576,115240.0,115230.0,0.2420164]
[1754499863835,2.18599576,115240.0,115230.0,0.2557564]
[1754499865833,2.1965771,115240.0,115230.0,0.2557564]
[1754499866229,2.3701185,115240.0,115230.0,0.1735564]
[1754499866534,2.1965771,115240.0,115230.0,0.1735564]
[1754499866925,2.1965771,115240.0,115230.0,0.1978964]
[1754499867334,2.1965771,115240.0,115230.0,0.2327864]
[1754499867535,2.1965771,115240.0,115230.0,0.2420164]
[1754499868633,2.1965771,115240.0,115230.0,0.1978964]
[1754499869032,1.81672134,115240.0,115230.0,0.1735564]
[1754499869234,1.80782134,115240.0,115230.0,0.2594464]
[1754499869426,1.81624134,115240.0,115230.0,0.2943364]
[1754499870335,2.1960971,115240.0,115230.0,0.2943364]
[1754499872233,2.1958171,115240.0,115230.0,0.2943364]
[1754499872836,1.81596134,115240.0,115230.0,0.2943364]
[1754499873039,2.1958171,115240.0,115230.0,0.2943364]
[1754499874533,2.74921416,115240.0,115230.0,0.1735564]
[1754499874933,2.3693584,115240.0,115230.0,0.1735564]
[1754499875136,1.7725584,115240.0,115230.0,0.1735564]
[1754499875335,2.3691984,115240.0,115230.0,0.1735564]
[1754499876337,0.1954564,115230.0,115220.0,0.37186407]
[1754499876529,0.40175576,115230.0,115220.0,0.37186407]
[1754499876732,0.57531216,115230.0,115220.0,0.1735714]
[1754499877035,0.1954714,115220.0,115210.0,0.34742191]
[1754499877235,1.17220716,115220.0,115210.0,0.34742191]
[1754499877732,0.61878,115220.0,115210.0,0.34742191]
[1754499877940,0.99863576,115220.0,115210.0,0.34742191]
[1754499878137,0.99863576,115220.0,115210.0,0.35665191]
[1754499878338,0.99863576,115220.0,115210.0,0.40528191]
[1754499878540,0.99863576,115220.0,115210.0,0.42782191]
[1754499878841,0.99863576,115220.0,115210.0,0.51275186]
[1754499879432,0.61878,115220.0,115210.0,0.51275186]
[1754499880541,0.61036,115220.0,115210.0,0.51275186]
[1754499880744,0.99021576,115220.0,115210.0,0.51275186]
[1754499881842,0.99863576,115220.0,115210.0,0.51275186]
[1754499887247,0.99863576,115220.0,115210.0,0.49343125]
[1754499890752,0.99021576,115220.0,115210.0,0.49343125]
[1754499891556,0.99863576,115220.0,115210.0,0.49343125]
[1754499894157,0.99863576,115220.0,115210.0,0.4245413]
[1754499898655,0.99863576,115220.0,115210.0,0.49404912]
[1754499899958,0.99021576,115220.0,115210.0,0.37326912]
[1754499900258,0.99863576,115220.0,115210.0,0.39758912]
[1754499901655,0.99863576,115220.0,115210.0,0.45398912]
[1754499901863,0.99863576,115220.0,115210.0,0.47534912]
[1754499902157,0.99863576,115220.0,115210.0,0.49182912]
[1754499904959,1.17220996,115220.0,115210.0,0.49182912]
[1754499905153,1.17220996,115220.0,115210.0,0.28647612]
[1754499905864,1.17220996,115220.0,115210.0,0.2169683]
[1754499907364,1.17220996,115220.0,115210.0,0.2412883]
[1754499907864,0.99863576,115220.0,115210.0,0.3190483]
[1754499908065,0.99863576,115220.0,115210.0,0.3355283]
[1754499908265,1.17220996,115220.0,115210.0,0.3355283]
[1754499908466,0.99863576,115220.0,115210.0,0.3355283]
[1754499908765,1.17220996,115220.0,115210.0,0.3355283]
[1754499909865,1.17220996,115220.0,115210.0,0.2885183]
[1754499910062,1.17220996,115220.0,115210.0,0.2720383]
[1754499910269,1.17220996,115220.0,115210.0,0.2412883]
[1754499910968,1.17220996,115220.0,115210.0,0.2760683]
[1754499911267,1.17221006,115220.0,115210.0,0.2760683]
[1754499912169,1.17221006,115220.0,115210.0,0.2412883]
[1754499914469,1.17221006,115220.0,115210.0,0.2760683]
[1754499914669,1.17221006,115220.0,115210.0,0.3362783]
[1754499917470,0.99863576,115220.0,115210.0,0.3362783]
[1754499918271,1.17221006,115220.0,115210.0,0.3362783]
[1754499920173,0.99863576,115220.0,115210.0,0.3362783]
[1754499920373,1.17220986,115220.0,115210.0,0.3362783]
[1754499921880,0.99863576,115220.0,115210.0,0.3362783]
[1754499922376,1.17220986,115220.0,115210.0,0.3362783]
[1754499925679,0.1954892,115210.0,115200.0,0.1736008]
[1754499925876,0.1955043,115200.0,115190.0,0.327876]
[1754499926076,1.17176006,115200.0,115190.0,0.327876]
[1754499926280,1.17176006,115200.0,115190.0,0.3956112]
[1754499926778,1.55161582,115200.0,115190.0,0.1967176]
[1754499926976,1.55161582,115200.0,115190.0,0.1997176]
[1754499927578,1.17176006,115200.0,115190.0,0.1997176]
[1754499927981,1.17176006,115200.0,115190.0,0.2007176]
[1754499928378,1.55161582,115200.0,115190.0,0.2007176]
[1754499928783,1.55161582,115200.0,115190.0,0.200729]
[1754499929274,1.55161582,115200.0,115190.0,0.1776193]
[1754499929986,1.55161582,115200.0,115190.0,0.2007293]
[1754499930184,1.55161582,115200.0,115190.0,0.004]
[1754499930386,0.1736193,115190.0,115180.0,0.1736343]
[1754499930585,0.66219076,115190.0,115180.0,0.1736343]
[1754499931385,0.66219076,115190.0,115180.0,0.1967442]
[1754499931688,0.66219076,115190.0,115180.0,0.1987442]
[1754499931986,0.66219076,115190.0,115180.0,0.2027442]
[1754499933284,1.86299076,115190.0,115180.0,0.2027442]
[1754499937486,1.86299076,115190.0,115180.0,0.02911]
[1754499938294,1.86299076,115190.0,115180.0,0.2027442]
[1754499939786,1.86299076,115190.0,115180.0,0.02911]
[1754499939989,1.86299076,115190.0,115180.0,0.2027443]
[1754499940184,1.86299076,115190.0,115180.0,0.02911]
[1754499941484,0.2823555,115180.0,115160.0,0.2604799]
[1754499941680,1.17188506,115170.0,115160.0,0.2739356]
[1754499941884,1.17188506,115170.0,115160.0,0.1977915]
[1754499942692,1.17188506,115170.0,115160.0,0.2027915]
[1754499942888,1.17188506,115170.0,115160.0,0.2445215]
[1754499943094,1.17188506,115170.0,115160.0,0.2991715]
[1754499943897,0.99823576,115170.0,115160.0,0.2991715]
[1754499944095,1.17188506,115170.0,115160.0,0.2991715]
[1754499944482,0.99823576,115170.0,115140.0,0.15640303]
[1754499944690,0.61884236,115160.0,115150.0,0.03359]
[1754499944888,0.61884236,115160.0,115150.0,0.2072694]
[1754499945089,0.61884236,115160.0,115150.0,0.2395494]
[1754499945593,0.58524189,115160.0,115150.0,0.2941994]
[1754499946697,0.20538613,115160.0,115150.0,0.2941994]
[1754499946996,0.58524189,115160.0,115150.0,0.2941994]
[1754499947383,0.58824189,115160.0,115150.0,0.12052]
[1754499947698,0.58824189,115160.0,115140.0,0.33008803]
[1754499947699,0.1955798,115150.0,115140.0,0.16593703]
[1754499947901,0.99827576,115150.0,115140.0,0.33963193]
[1754499948192,0.99827576,115150.0,115140.0,0.36377193]
[1754499949088,1.00027576,115150.0,115140.0,0.36377193]
[1754499953001,0.99185576,115150.0,115140.0,0.36377193]
[1754499953501,0.38185576,115150.0,115140.0,0.36377193]
[1754499953700,0.59856,115150.0,115140.0,0.36377193]
[1754499954700,0.59856,115150.0,115140.0,0.74362769]
[1754499956303,0.59756,115150.0,115140.0,0.74362769]
[1754499956604,0.59756,115150.0,115140.0,0.36377193]
[1754499956898,0.59756,115150.0,115140.0,0.74362769]
[1754499957502,0.001,115150.0,115140.0,0.74362769]
[1754499957696,0.00981573,115160.0,115150.0,0.19696]
[1754499957897,1.79768846,115190.0,115180.0,0.2535147]
[1754499958096,1.22743337,115190.0,115180.0,0.2700147]
[1754499958404,2.21358877,115190.0,115180.0,0.2941547]
[1754499958599,2.39562847,115190.0,115180.0,0.2941547]
[1754499959108,2.39562847,115190.0,115180.0,0.2305047]
[1754499959403,2.39562847,115190.0,115180.0,0.1977747]
[1754499959710,2.22200877,115190.0,115180.0,0.1977747]
[1754499960407,2.22300877,115190.0,115180.0,0.1977747]
[1754499960810,2.22602686,115190.0,115180.0,0.1977747]
[1754499962106,2.1909554,115190.0,115180.0,0.2941547]
[1754499962301,1.81951964,115190.0,115180.0,0.2941547]
[1754499962502,2.1909554,115190.0,115180.0,0.2941547]
[1754499962805,1.81109964,115190.0,115180.0,0.2941547]
[1754499963204,1.21453964,115190.0,115180.0,0.67401046]
[1754499963508,1.80136,115190.0,115180.0,0.67401046]
[1754499964304,1.80136,115190.0,115180.0,0.2941547]
[1754499964502,1.81108142,115190.0,115180.0,0.2941547]
[1754499964704,1.80036,115190.0,115180.0,0.2941547]
[1754499965006,1.79936,115190.0,115180.0,0.2941547]
[1754499968913,1.8093829,115190.0,115180.0,0.2941547]
[1754499975711,1.8093829,115190.0,115180.0,0.36414595]
[1754499977614,1.8178029,115190.0,115180.0,0.36414595]
[1754499982213,0.6304829,115190.0,115180.0,0.36414595]
[1754499982923,1.3520829,115190.0,115180.0,0.36414595]
[1754499985623,1.73193866,115190.0,115180.0,0.36414595]
[1754499988929,1.73193866,115190.0,115180.0,0.24362595]
[1754499989125,1.90555966,115190.0,115180.0,0.24362595]
[1754499990729,1.73193866,115190.0,115180.0,0.24362595]
[1754499990930,1.90555966,115190.0,115180.0,0.24362595]
[1754499991122,1.90555966,115190.0,115180.0,0.1736347]
[1754499994926,0.1736361,115180.0,115170.0,0.2604617]
[1754499995131,0.91429186,115180.0,115170.0,0.2604617]
[1754499996031,0.91429186,115180.0,115170.0,0.1736405]
[1754499996926,1.00113016,115180.0,115160.0,0.1527992]
[1754499997136,1.51070686,115170.0,115160.0,0.3264654]
[1754499998527,1.51070686,115170.0,115160.0,0.260499]
[1754499999429,1.51070686,115170.0,115160.0,0.283049]
[1754499999937,1.51070686,115170.0,115160.0,0.2170826]
[1754500000134,1.51070686,115170.0,115160.0,0.1736662]
[1754500000335,0.1736662,115160.0,115150.0,0.39696316]
[1754500000535,0.74065576,115160.0,115150.0,0.45410316]
[1754500000732,0.74065576,115160.0,115150.0,0.49165316]
[1754500000935,0.9572,115160.0,115150.0,0.49165316]
[1754500001639,0.95724,115160.0,115150.0,0.87150892]
[1754500001937,0.7978211,115160.0,115150.0,1.34518892]
[1754500002140,0.95724,115170.0,115160.0,0.2924862]
[1754500002334,0.95724,115170.0,115160.0,0.67234196]
[1754500002643,0.95724,115170.0,115160.0,1.14600595]
[1754500003339,0.95724,115170.0,115160.0,0.67234196]
[1754500003547,1.03626,115170.0,115160.0,0.2924862]
[1754500003931,1.01312,115170.0,115160.0,0.2924862]
[1754500005437,0.95724,115170.0,115160.0,0.67234196]
[1754500005841,0.95724,115170.0,115160.0,0.2924862]
[1754500006042,0.95724,115170.0,115160.0,0.67234196]
[1754500006546,0.97466,115170.0,115160.0,0.67234196]
[1754500006736,1.01312,115170.0,115160.0,0.67234196]
[1754500007043,1.01312,115170.0,115160.0,0.2924862]
[1754500007243,1.03626,115170.0,115160.0,0.2924862]
[1754500007841,1.41611576,115170.0,115160.0,0.2924862]
[1754500008031,1.03626,115170.0,115160.0,0.2924862]
[1754500009842,1.03726,115170.0,115160.0,0.2924862]
[1754500015841,1.59078096,115170.0,115160.0,0.1736662]
[1754500016244,1.41711576,115170.0,115160.0,0.1736662]
[1754500016946,1.03726,115170.0,115160.0,0.1977962]
[1754500017239,1.03726,115170.0,115160.0,0.2077962]
[1754500017441,1.03726,115170.0,115160.0,0.2220062]
[1754500017647,1.03726,115170.0,115160.0,0.2549362]
[1754500018648,1.03726,115170.0,115160.0,0.2220062]
[1754500019048,1.03726,115170.0,115160.0,0.2077962]
[1754500019441,1.03726,115170.0,115160.0,0.1736662]
[1754500019642,1.41711576,115170.0,115160.0,0.1736662]
[1754500020044,1.59077796,115170.0,115160.0,0.1736662]
[1754500020349,1.41711576,115170.0,115160.0,0.1736662]
[1754500021346,1.59077786,115170.0,115160.0,0.1736662]
[1754500021551,1.41711576,115170.0,115160.0,0.1736662]
[1754500023764,1.59077786,115170.0,115160.0,0.1736662]
[1754500025859,1.59077786,115170.0,115160.0,0.1236662]
[1754500026766,0.2121366,115160.0,115150.0,0.37284396]
[1754500027065,0.99335236,115160.0,115150.0,0.37284396]
[1754500027364,0.99335236,115160.0,115150.0,0.39697396]
[1754500028162,0.81967576,115160.0,115150.0,0.39697396]
[1754500028463,0.81967576,115160.0,115150.0,0.42118396]
[1754500029269,0.81967576,115160.0,115150.0,0.42218396]
[1754500029565,0.81967576,115160.0,115150.0,0.45511396]
[1754500030166,0.81967576,115160.0,115150.0,0.45411396]
[1754500030368,0.44082,115160.0,115150.0,0.49134396]
[1754500030569,1.0373,115160.0,115150.0,0.49134396]
[1754500031163,1.0383,115160.0,115150.0,0.49134396]
[1754500034266,1.0383,115160.0,115150.0,0.37284396]
[1754500034472,1.59183246,115160.0,115150.0,0.37284396]
[1754500035271,1.59183246,115160.0,115150.0,0.39694396]
[1754500035467,1.41815576,115160.0,115150.0,0.39694396]
[1754500035672,1.41815576,115160.0,115150.0,0.328039]
[1754500036772,1.59183246,115160.0,115150.0,0.303939]
[1754500037175,1.0383,115160.0,115150.0,0.303939]
[1754500037368,1.41815576,115160.0,115150.0,0.328039]
[1754500037573,1.59183296,115160.0,115150.0,0.328039]
[1754500040273,1.59183296,115160.0,115150.0,0.2170988]
[1754500040576,1.59183296,115160.0,115150.0,0.1736787]
[1754500042074,0.07844,115150.0,115130.0,0.1109569]
[1754500042268,1.95008306,115140.0,115130.0,0.3379541]
[1754500042470,1.95008306,115140.0,115130.0,0.2605649]
[1754500042672,1.95008306,115140.0,115130.0,0.173708]
[1754500043877,1.95008306,115140.0,115130.0,0.198808]
[1754500044379,1.95008306,115140.0,115130.0,0.201808]
[1754500045075,1.95208306,115140.0,115130.0,0.197808]
[1754500045277,1.96277838,115140.0,115130.0,0.173708]
[1754500048977,2.65277838,115140.0,115130.0,0.173708]
[1754500049685,1.96277838,115140.0,115130.0,0.197808]
[1754500051184,1.78907108,115140.0,115130.0,0.197808]
[1754500051485,1.78907108,115140.0,115130.0,0.289698]
[1754500052584,1.96277888,115140.0,115130.0,0.289698]
[1754500053383,1.78907108,115140.0,115130.0,0.289698]
[1754500053580,1.96277888,115140.0,115130.0,0.289698]
[1754500056888,1.78907108,115140.0,115130.0,0.289698]
[1754500057276,1.40921532,115140.0,115130.0,0.289698]
[1754500057479,1.96277888,115140.0,115130.0,0.289698]
[1754500059585,1.33077532,115140.0,115130.0,0.173708]
[1754500059782,1.34819532,115140.0,115130.0,0.67092376]
[1754500060483,1.34819532,115140.0,115130.0,0.291068]
[1754500060791,1.37248532,115140.0,115130.0,0.291068]
[1754500060985,1.75234108,115140.0,115130.0,0.291068]
[1754500061986,1.15586108,115140.0,115130.0,0.291068]
[1754500062189,1.75962108,115140.0,115130.0,0.291068]
[1754500065592,1.75962108,115140.0,115130.0,0.207668]
[1754500065889,1.75962108,115140.0,115130.0,0.173708]
[1754500066191,1.75962108,115140.0,115130.0,0.196398]
[1754500066385,1.75962108,115140.0,115130.0,0.220218]
[1754500066577,1.75962108,115140.0,115130.0,0.290248]
[1754500067791,1.75962108,115140.0,115130.0,0.257028]
[1754500068188,1.75962108,115140.0,115130.0,0.205478]
[1754500068493,1.93332898,115140.0,115130.0,0.173708]
[1754500069492,1.75962108,115140.0,115130.0,0.173708]
[1754500070294,1.93332898,115140.0,115130.0,0.173708]
[1754500074499,1.55347322,115140.0,115130.0,0.173708]
[1754500074701,1.75962108,115140.0,115130.0,0.196398]
[1754500074899,1.75962108,115140.0,115130.0,0.205478]
[1754500075200,1.75962108,115140.0,115130.0,0.290248]
[1754500075404,1.93332908,115140.0,115130.0,0.290248]
[1754500075589,1.93332908,115140.0,115130.0,0.196398]
[1754500077796,1.93332908,115140.0,115130.0,0.173708]
[1754500078996,0.2978739,115130.0,115120.0,0.1737382]
[1754500079302,1.03852966,115130.0,115120.0,0.1737382]
[1754500079603,1.03852966,115130.0,115120.0,0.1964282]
[1754500081000,0.2544581,115120.0,115110.0,0.3394727]